fUSD/lending_fUSD_20260331
["ID","MTS","AMOUNT","RATE_DAILY","PERIOD"]
[419156251,1774961442090,-363.817739,0.00016438,2]
[419156252,1774961442099,-363.817739,0.00016438,2]
[419156253,1774961442109,-363.817739,0.00016438,2]
[419156254,1774961442118,-363.817739,0.00016438,2]
[419156255,1774961442128,-363.817739,0.00016438,2]
[419156256,1774961442139,-363.817739,0.00016438,2]
[419156257,1774961442149,-363.817739,0.00016438,2]
[419156258,1774961442158,-363.817739,0.00016438,2]
[419156259,1774961442167,-363.817739,0.00016438,2]
[419156260,1774961442178,-363.817739,0.00016438,2]
[419156261,1774961442188,-363.817739,0.00016438,2]
[419156262,1774961442197,-363.817739,0.00016438,2]
[419156263,1774961442207,-363.817739,0.00016438,2]
[419156264,1774961442216,-363.817739,0.00016438,2]
[419156265,1774961442225,-363.817739,0.00016438,2]
[419156266,1774961442235,-363.817739,0.00016438,2]
[419156267,1774961442246,-363.817739,0.00016438,2]
[419156268,1774961442255,-363.817743,0.00016438,2]
[419156269,1774961442266,-1360.0,0.00016463,7]
[419156270,1774961442275,-1633.24788694,0.00016464,2]
[419156271,1774961442285,-166.67,0.0001647,2]
[419156272,1774961442295,-1430.0,0.0001648,2]
[419156273,1774961442305,-725.0,0.00016489,4]
[419156274,1774961442315,-881.0,0.00016492,2]
[419156275,1774961442326,-200.0,0.00016493,2]
[419156276,1774961442336,-352.0,0.00016516,2]
[419156277,1774961442346,-740.9,0.00016575,2]
[419156278,1774961442355,-164.27749,0.000166,2]
[419156279,1774961442366,-1436.96138127,0.00016607,2]
[419156280,1774961442376,-151.0,0.00016616,5]
[419156281,1774961442385,-3208.37,0.00016666,2]
[419156282,1774961442395,-1378.57,0.0001667,2]
[419156283,1774961442404,-2808.0,0.0001668,2]
[419156284,1774961442414,-165.06,0.000167,10]
[419156285,1774961442425,-2167.1,0.00016712,2]
[419156286,1774961442435,-157.09,0.00016712,2]
[419156287,1774961442447,-500.0,0.00016719,2]
[419156288,1774961442458,-410.88,0.00016719,2]
[419156289,1774961442467,-500.52414684,0.00016719,2]
[419156290,1774961442476,-300.0,0.00016719,2]
[419156291,1774961442485,-300.0,0.00016719,2]
[419156292,1774961442494,-300.0,0.00016719,2]
[419156293,1774961442504,-300.0,0.00016719,2]
[419156294,1774961442513,-300.0,0.00016719,2]
[419156295,1774961442522,-300.0,0.00016719,2]
[419156296,1774961442531,-300.0,0.00016719,2]
[419156297,1774961442540,-300.0,0.00016719,2]
[419156298,1774961442549,-300.0,0.00016719,2]
[419156299,1774961442558,-25000.0,0.0001672,3]
[419156300,1774961442568,-165.06,0.00016734,11]
[419156301,1774961442577,-200.0,0.00016745,2]
[419156302,1774961442587,-200.0,0.00016745,2]
[419156303,1774961442596,-200.0,0.00016745,2]
[419156304,1774961442606,-200.0,0.00016745,2]
[419156305,1774961442615,-200.0,0.00016745,2]
[419156306,1774961442624,-200.0,0.00016745,2]
[419156307,1774961442633,-200.0,0.00016745,2]
[419156308,1774961442643,-200.0,0.00016745,2]
[419156309,1774961442652,-200.0,0.00016745,2]
[419156310,1774961442661,-159.0,0.00016745,2]
[419156311,1774961442670,-881.0,0.00016766,2]
[419156312,1774961442679,-200.8,0.00016774,2]
[419156313,1774961442688,-5871.89579533,0.00016777,2]
[419156314,1774961442697,-14322.37,0.000168,2]
[419156315,1774961442706,-1000.0,0.00016822,7]
[419156316,1774961442715,-8339.41347861,0.0001683,10]
[419156317,1774961442725,-740.9,0.00016849,2]
[419156318,1774961442735,-500.0,0.00016868,2]
[419156320,1774961442744,-1004.16690782,0.00016868,2]
[419156321,1774961442753,-196.0,0.00016878,2]
[419156322,1774961442763,-417.0,0.00016879,2]
[419156323,1774961442772,-950.0,0.00016888,2]
[419156324,1774961442781,-950.0,0.00016888,2]
[419156325,1774961442791,-950.0,0.00016888,2]
[419156327,1774961442800,-950.0,0.00016888,2]
[419156328,1774961442810,-950.0,0.00016888,2]
[419156329,1774961442820,-950.0,0.00016888,2]
[419156330,1774961442830,-950.0,0.00016888,2]
[419156331,1774961442841,-950.0,0.00016888,2]
[419156332,1774961442851,-950.0,0.00016888,2]
[419156334,1774961442860,-490.0,0.00016888,2]
[419156335,1774961442869,-500.0,0.00016899,2]
[419156336,1774961442878,-256.4762,0.000169,12]
[419156337,1774961442888,-1254.18,0.00016931,2]
[419156338,1774961442898,-971.35,0.00016931,2]
[419156339,1774961442907,-557.56,0.00016931,2]
[419156340,1774961442916,-986.66,0.00016931,2]
[419156341,1774961442926,-647.77,0.00016931,2]
[419156342,1774961442935,-548.98,0.00016931,2]
[419156343,1774961442944,-671.85,0.00016931,2]
[419156344,1774961442953,-615.09,0.00016931,2]
[419156345,1774961442963,-602.83,0.00016931,2]
[419156347,1774961442972,-10617.44517809,0.00016942,2]
[419156349,1774961442982,-203.0,0.00016954,2]
[419156350,1774961442991,-168.0,0.00016956,2]
[419156351,1774961443001,-2167.1,0.00016986,2]
[419156352,1774961443011,-150.0,0.00016986,2]
[419156353,1774961443021,-300.0,0.00016991,2]
[419156354,1774961443031,-150.0,0.00016992,2]
[419156355,1774961443041,-150.0,0.00016992,2]
[419156356,1774961443051,-150.0,0.00016992,2]
[419156357,1774961443061,-150.0,0.00016992,2]
[419156358,1774961443070,-150.0,0.00016992,2]
[419156360,1774961443079,-150.0,0.00016992,2]
[419156361,1774961443089,-150.0,0.00016992,2]
[419156363,1774961443098,-200.0,0.00016992,2]
[419156365,1774961443108,-500.0,0.00016999,2]
[419156366,1774961443118,-707.92,0.00016999,2]
[419156367,1774961443128,-707.92,0.00016999,2]
[419156368,1774961443139,-707.92,0.00016999,2]
[419156369,1774961443149,-707.92,0.00016999,2]
[419156370,1774961443158,-707.92,0.00016999,2]
[419156371,1774961443168,-707.92,0.00016999,2]
[419156372,1774961443178,-707.92,0.00016999,2]
[419156373,1774961443187,-708.00282066,0.00016999,2]
[419156374,1774961443197,-439.41953841,0.00016999,2]
[419156375,1774961443206,-300.0,0.00016999,2]
[419156376,1774961443216,-300.0,0.00016999,2]
[419156377,1774961443225,-300.0,0.00016999,2]
[419156378,1774961443234,-300.0,0.00016999,2]
[419156379,1774961443244,-300.0,0.00016999,2]
[419156380,1774961443253,-300.0,0.00016999,2]
[419156381,1774961443262,-300.0,0.00016999,2]
[419156382,1774961443271,-300.0,0.00016999,2]
[419156383,1774961443280,-500.0,0.00016999,2]
[419156384,1774961443290,-500.0,0.00016999,2]
[419156385,1774961443300,-500.0,0.00016999,2]
[419156386,1774961443310,-500.0,0.00016999,2]
[419156387,1774961443319,-500.0,0.00016999,2]
[419156388,1774961443329,-500.0,0.00016999,2]
[419156389,1774961443339,-500.0,0.00016999,2]
[419156390,1774961443349,-500.0,0.00016999,2]
[419156391,1774961443359,-103767.88937615,0.00017,2]
[419156392,1774961443369,-1000.0,0.00017,2]
[419156393,1774961443379,-720942.85608023,0.00017,2]
[419156394,1774961443389,-5960.41946666,0.00017,2]
[419156395,1774961443399,-200.16278076,0.00017,30]
[419156396,1774961443409,-350.0,0.00017,2]
[419156397,1774961443419,-583.0,0.00017014,2]
[419156398,1774961443429,-473.665104,0.00017019,7]
[419156399,1774961443439,-946.0,0.00017023,2]
[419156400,1774961443449,-1862.0,0.00017023,2]
[419156401,1774961443459,-1125.0,0.00017023,2]
[419156402,1774961443468,-7032.0,0.00017023,2]
[419156403,1774961443477,-1843.0,0.00017023,2]
[419156404,1774961443487,-986.0,0.00017023,2]
[419156405,1774961443496,-254.44070929,0.00017036,2]
[419156406,1774961443505,-200.0,0.00017041,2]
[419156407,1774961443515,-2808.0,0.00017047,2]
[419156408,1774961443525,-1571.0,0.00017047,2]
[419156409,1774961443535,-1378.57,0.00017058,2]
[419156410,1774961443544,-500.0,0.00017062,2]
[419156411,1774961443554,-500.0,0.00017068,2]
[419156412,1774961443564,-500.0,0.00017099,2]
[419156413,1774961443574,-572.0,0.00017099,2]
[419156414,1774961443583,-500.0,0.00017099,2]
[419156415,1774961443592,-500.0,0.00017099,2]
[419156416,1774961443601,-667.0,0.00017099,2]
[419156417,1774961443611,-500.0,0.00017099,2]
[419156418,1774961443621,-756.0,0.00017099,2]
[419156419,1774961443630,-831.0,0.00017099,2]
[419156420,1774961443641,-300.0,0.00017099,2]
[419156421,1774961443651,-300.0,0.00017099,2]
[419156422,1774961443660,-300.0,0.00017099,2]
[419156423,1774961443670,-300.0,0.00017099,2]
[419156424,1774961443680,-300.0,0.00017099,2]
[419156425,1774961443689,-304.23564359,0.00017099,2]
[419156426,1774961443698,-89219.23993432,0.000171,2]
[419156427,1774961443708,-154.65190592,0.00017106,2]
[419156428,1774961443718,-262.0,0.00017113,2]
[419156429,1774961443728,-2808.0,0.00017122,2]
[419156430,1774961443742,-740.90540591,0.00017123,2]
[419156431,1774961443752,-1440.172407,0.00017132,7]
[419156432,1774961443761,-1871.0,0.00017135,2]
[419156433,1774961443771,-5542.0,0.00017145,2]
[419156434,1774961443781,-725.0,0.00017165,5]
[419156435,1774961443790,-500.0,0.00017185,2]
[419156436,1774961443799,-1537.29916649,0.00017251,2]
[419156437,1774961443808,-311.0,0.00017256,2]
[419156438,1774961443818,-2167.1,0.0001726,2]
[419156439,1774961443828,-2400.0,0.0001726,2]
[419156440,1774961443838,-166.67,0.00017287,2]
[419156441,1774961443847,-162.16,0.00017337,2]
[419156442,1774961443857,-335.70893531,0.00017364,2]
[419156443,1774961443866,-1215.39,0.00017424,2]
[419156444,1774961443876,-956.14,0.00017424,2]
[419156445,1774961443886,-627.73,0.00017424,2]
[419156446,1774961443895,-532.0,0.00017424,2]
[419156447,1774961443904,-596.07,0.00017424,2]
[419156448,1774961443914,-584.19,0.00017424,2]
[419156450,1774961443924,-495.203473,0.00017433,7]
[419156452,1774961443934,-736.0,0.00017452,2]
[419156453,1774961443944,-700.0,0.00017466,2]
[419156454,1774961443953,-10617.44517809,0.00017476,2]
[419156455,1774961443963,-500.0,0.00017479,2]
[419156456,1774961443973,-258.73832185,0.000175,2]
[419156457,1774961443983,-165.06,0.0001752,21]
[419156458,1774961443992,-2167.1,0.00017534,2]
[419156459,1774961444002,-150.0,0.00017534,2]
[419156460,1774961444011,-1739.0,0.00017542,2]
[419156461,1774961444020,-1115.0,0.00017546,2]
[419156462,1774961444030,-200.0,0.00017589,2]
[419156463,1774961444039,-155.0,0.00017599,2]
[419156464,1774961444048,-164.31,0.00017601,24]
[419156465,1774961444058,-151.0,0.00017616,5]
[419156466,1774961444067,-788.324698,0.000177,2]
[419156467,1774961444076,-403.0,0.000177,5]
[419156468,1774961444086,-2199.03447714,0.00017706,2]
[419156469,1774961444096,-300.0,0.00017756,2]
[419156470,1774961444105,-300.0,0.00017756,2]
[419156471,1774961444115,-300.0,0.00017756,2]
[419156472,1774961444124,-300.0,0.00017756,2]
[419156473,1774961444135,-300.0,0.00017756,2]
[419156474,1774961444145,-83678.8597129,0.00017757,2]
[419156475,1774961444499,-1200.0,0.000178,14]
[419156476,1774961444509,-300.0,0.00017807,2]
[419156477,1774961444519,-2167.1,0.00017808,2]
[419156478,1774961444530,-500.0,0.00017808,2]
[419156479,1774961444542,-500.0,0.00017808,2]
[419156480,1774961444554,-500.0,0.00017808,2]
[419156481,1774961444565,-500.0,0.00017808,2]
[419156482,1774961444575,-500.0,0.00017808,2]
[419156483,1774961444585,-500.0,0.00017808,2]
[419156484,1774961444596,-500.0,0.00017808,2]
[419156485,1774961444606,-500.0,0.00017808,2]
[419156486,1774961444615,-500.0,0.00017808,2]
[419156487,1774961444624,-500.0,0.00017808,2]
[419156488,1774961444636,-500.0,0.00017808,2]
[419156489,1774961444646,-500.0,0.00017808,2]
[419156490,1774961444655,-500.0,0.00017808,2]
[419156491,1774961444664,-500.0,0.00017808,2]
[419156492,1774961444674,-500.0,0.00017808,2]
[419156493,1774961444683,-500.0,0.00017808,2]
[419156494,1774961444694,-500.0,0.00017808,2]
[419156495,1774961444704,-500.0,0.00017808,2]
[419156496,1774961444715,-500.0,0.00017808,2]
[419156497,1774961444724,-500.0,0.00017808,2]
[419156498,1774961444735,-500.0,0.00017808,2]
[419156499,1774961444745,-500.0,0.00017808,2]
[419156500,1774961444755,-500.0,0.00017808,2]
[419156501,1774961444765,-500.0,0.00017808,2]
[419156502,1774961444774,-500.0,0.00017808,2]
[419156503,1774961444789,-500.0,0.00017808,2]
[419156504,1774961444800,-500.0,0.00017808,2]
[419156505,1774961444812,-500.0,0.00017808,2]
[419156506,1774961444821,-500.0,0.00017808,2]
[419156507,1774961444831,-500.0,0.00017808,2]
[419156508,1774961444841,-500.0,0.00017808,2]
[419156509,1774961444850,-500.0,0.00017808,2]
[419156510,1774961444860,-500.0,0.00017808,2]
[419156511,1774961444869,-500.0,0.00017808,2]
[419156512,1774961444879,-500.0,0.00017808,2]
[419156513,1774961444890,-500.0,0.00017808,2]
[419156514,1774961444899,-500.0,0.00017808,2]
[419156515,1774961444909,-500.0,0.00017808,2]
[419156516,1774961444920,-500.0,0.00017808,2]
[419156517,1774961444930,-500.0,0.00017808,2]
[419156518,1774961444941,-500.0,0.00017808,2]
[419156519,1774961444951,-500.0,0.00017808,2]
[419156520,1774961444961,-500.0,0.00017808,2]
[419156521,1774961444971,-500.0,0.00017808,2]
[419156522,1774961444981,-500.0,0.00017808,2]
[419156523,1774961444991,-500.0,0.00017808,2]
[419156524,1774961445001,-500.0,0.00017808,2]
[419156525,1774961445010,-500.0,0.00017808,2]
[419156526,1774961445020,-500.0,0.00017808,2]
[419156527,1774961445030,-500.0,0.00017808,2]
[419156528,1774961445040,-500.0,0.00017808,2]
[419156529,1774961445050,-500.0,0.00017808,2]
[419156530,1774961445059,-500.0,0.00017808,2]
[419156531,1774961445069,-500.0,0.00017808,2]
[419156532,1774961445078,-500.0,0.00017808,2]
[419156533,1774961445088,-500.0,0.00017808,2]
[419156534,1774961445098,-500.0,0.00017808,2]
[419156535,1774961445107,-500.0,0.00017808,2]
[419156536,1774961445116,-500.0,0.00017808,2]
[419156537,1774961445126,-500.0,0.00017808,2]
[419156538,1774961445136,-500.0,0.00017808,2]
[419156539,1774961445145,-500.0,0.00017808,2]
[419156540,1774961445155,-500.0,0.00017808,2]
[419156541,1774961445165,-500.0,0.00017808,2]
[419156542,1774961445174,-500.0,0.00017808,2]
[419156543,1774961445185,-645.0,0.00017808,2]
[419156544,1774961445194,-500.0,0.00017808,2]
[419156545,1774961445204,-500.0,0.00017808,2]
[419156546,1774961445214,-500.0,0.00017808,2]
[419156547,1774961445223,-500.0,0.00017808,2]
[419156548,1774961445233,-500.0,0.00017808,2]
[419156549,1774961445242,-500.0,0.00017808,2]
[419156550,1774961445252,-500.0,0.00017808,2]
[419156551,1774961445262,-500.0,0.00017808,2]
[419156552,1774961445272,-500.0,0.00017808,2]
[419156553,1774961445281,-500.0,0.00017808,2]
[419156554,1774961445293,-500.0,0.00017808,2]
[419156555,1774961445303,-500.0,0.00017808,2]
[419156556,1774961445313,-500.0,0.00017808,2]
[419156557,1774961445322,-500.0,0.00017808,2]
[419156558,1774961445331,-500.0,0.00017808,2]
[419156559,1774961445341,-500.0,0.00017808,2]
[419156560,1774961445350,-500.0,0.00017808,2]
[419156561,1774961445360,-500.0,0.00017808,2]
[419156562,1774961445369,-500.0,0.00017808,2]
[419156563,1774961445379,-500.0,0.00017808,2]
[419156564,1774961445389,-500.0,0.00017808,2]
[419156565,1774961445399,-500.0,0.00017808,2]
[419156566,1774961445409,-500.0,0.00017808,2]
[419156567,1774961445418,-500.0,0.00017808,2]
[419156568,1774961445428,-500.0,0.00017808,2]
[419156569,1774961445437,-500.0,0.00017808,2]
[419156570,1774961445446,-500.0,0.00017808,2]
[419156571,1774961445456,-500.0,0.00017808,2]
[419156572,1774961445465,-500.0,0.00017808,2]
[419156573,1774961445474,-500.0,0.00017808,2]
[419156574,1774961445484,-500.0,0.00017808,2]
[419156575,1774961445493,-500.0,0.00017808,2]
[419156576,1774961445502,-500.0,0.00017808,2]
[419156577,1774961445512,-500.0,0.00017808,2]
[419156578,1774961445522,-500.0,0.00017808,2]
[419156579,1774961445531,-500.0,0.00017808,2]
[419156580,1774961445540,-500.0,0.00017808,2]
[419156581,1774961445550,-500.0,0.00017808,2]
[419156582,1774961445559,-500.0,0.00017808,2]
[419156583,1774961445568,-500.0,0.00017808,2]
[419156584,1774961445578,-500.0,0.00017808,2]
[419156585,1774961445587,-500.0,0.00017808,2]
[419156586,1774961445597,-500.0,0.00017808,2]
[419156587,1774961445606,-500.0,0.00017808,2]
[419156588,1774961445615,-500.0,0.00017808,2]
[419156589,1774961445625,-500.0,0.00017808,2]
[419156590,1774961445634,-500.0,0.00017808,2]
[419156591,1774961445644,-500.0,0.00017808,2]
[419156592,1774961445653,-500.0,0.00017808,2]
[419156593,1774961445662,-500.0,0.00017808,2]
[419156594,1774961445672,-500.0,0.00017808,2]
[419156595,1774961445681,-500.0,0.00017808,2]
[419156596,1774961445690,-500.0,0.00017808,2]
[419156597,1774961445700,-500.0,0.00017808,2]
[419156598,1774961445709,-500.0,0.00017808,2]
[419156599,1774961445718,-500.0,0.00017808,2]
[419156600,1774961445727,-500.0,0.00017808,2]
[419156601,1774961445736,-500.0,0.00017808,2]
[419156602,1774961445746,-500.0,0.00017808,2]
[419156603,1774961445756,-500.0,0.00017808,2]
[419156604,1774961445765,-500.0,0.00017808,2]
[419156605,1774961445774,-500.0,0.00017808,2]
[419156606,1774961445784,-500.0,0.00017808,2]
[419156607,1774961445793,-500.0,0.00017808,2]
[419156608,1774961445803,-725.0,0.0001784,6]
[419156609,1774961445813,-1009.43265114,0.0001786,2]
[419156610,1774961445823,-1231.64186434,0.0001789,2]
[419156611,1774961445832,-1079.25739047,0.0001789,2]
[419156612,1774961445841,-1108.94910676,0.0001789,2]
[419156613,1774961445851,-1000.0,0.000179,6]
[419156614,1774961445861,-168.21,0.00017907,2]
[419156615,1774961445870,-168.21,0.00017907,2]
[419156616,1774961445879,-1000.0,0.00017918,7]
[419156617,1774961445888,-182.73,0.00017949,4]
[419156618,1774961445898,-836.1057008,0.00017972,2]
[419156619,1774961445908,-20000.0,0.0001799,2]
[419156621,1774961445917,-504.48,0.00017999,2]
[419156622,1774961445927,-695.34,0.00017999,2]
[419156624,1774961445936,-512.39511374,0.00017999,2]
[419156625,1774961445946,-500.0,0.00017999,2]
[419156627,1774961445966,-508.28,0.00017999,2]
[419156629,1774961445978,-988.09,0.00017999,2]
[419156631,1774961445988,-513.36,0.00017999,2]
[419156632,1774961445997,-246.04005081,0.00017999,2]
[419156634,1774961446007,-500.0,0.00017999,2]
[419156636,1774961446017,-500.0,0.00017999,2]
[419156637,1774961446028,-300.0,0.00017999,2]
[419156638,1774961446038,-300.0,0.00017999,2]
[419156639,1774961446049,-300.0,0.00017999,2]
[419156640,1774961446059,-300.0,0.00017999,2]
[419156641,1774961446070,-300.0,0.00017999,2]
[419156642,1774961446082,-500.0,0.00017999,2]
[419156643,1774961446092,-500.0,0.00017999,2]
[419156644,1774961446102,-300.0,0.00018,5]
[419156645,1774961446112,-110233.56565845,0.00018,2]
[419156646,1774961446123,-1200.36676986,0.00018,2]
[419156647,1774961446133,-309.46786714,0.00018,2]
[419156648,1774961446143,-288.0,0.00018,8]
[419156649,1774961446153,-200.0,0.00018,3]
[419156650,1774961446164,-300.0,0.00018,5]
[419156651,1774961446174,-200.506913,0.00018,2]
[419156652,1774961446185,-10617.44517809,0.0001801,2]
[419156653,1774961446195,-2000.0,0.0001802,2]
[419156654,1774961446205,-946.0,0.00018023,2]
[419156655,1774961446215,-1862.0,0.00018023,2]
[419156656,1774961446226,-1125.0,0.00018023,2]
[419156657,1774961446237,-7032.0,0.00018023,2]
[419156658,1774961446247,-1843.0,0.00018023,2]
[419156659,1774961446257,-986.0,0.00018023,2]
[419156660,1774961446267,-1600.0,0.00018054,2]
[419156661,1774961446277,-1044.6,0.00018078,2]
[419156662,1774961446287,-1176.6,0.00018082,2]
[419156663,1774961446297,-2167.1,0.00018082,2]
[419156664,1774961446307,-150.0,0.00018082,2]
[419156665,1774961446317,-1791.57923308,0.000181,2]
[419156666,1774961446327,-200.0,0.00018137,2]
[419156667,1774961446337,-335.3706,0.000182,17]
[419156668,1774961446347,-18671.2773687,0.00018203,2]
[419156669,1774961446358,-168.24,0.00018283,2]
[419156670,1774961446368,-165.06,0.00018327,13]
[419156671,1774961446378,-301.00535974,0.0001833,30]
[419156672,1774961446389,-289.29049917,0.00018349,7]
[419156673,1774961446399,-504.48,0.00018355,2]
[419156674,1774961446409,-504.48,0.00018355,2]
[419156675,1774961446419,-504.48,0.00018355,2]
[419156676,1774961446429,-504.48,0.00018355,2]
[419156677,1774961446439,-504.56866532,0.00018355,2]
[419156678,1774961446449,-695.34,0.00018355,2]
[419156679,1774961446459,-695.34,0.00018355,2]
[419156680,1774961446469,-695.34,0.00018355,2]
[419156681,1774961446479,-695.34,0.00018355,2]
[419156682,1774961446489,-695.47855932,0.00018355,2]
[419156683,1774961446499,-500.0,0.00018355,2]
[419156684,1774961446509,-500.0,0.00018355,2]
[419156685,1774961446519,-311.0391628,0.00018355,2]
[419156686,1774961446531,-508.28,0.00018355,2]
[419156687,1774961446541,-508.28,0.00018355,2]
[419156688,1774961446551,-508.28,0.00018355,2]
[419156689,1774961446561,-508.28,0.00018355,2]
[419156690,1774961446571,-508.41477964,0.00018355,2]
[419156691,1774961446582,-988.09,0.00018355,2]
[419156692,1774961446593,-988.09,0.00018355,2]
[419156693,1774961446603,-988.09,0.00018355,2]
[419156694,1774961446613,-988.09,0.00018355,2]
[419156695,1774961446625,-988.28887303,0.00018355,2]
[419156696,1774961446635,-513.36,0.00018355,2]
[419156697,1774961446645,-513.36,0.00018355,2]
[419156698,1774961446655,-513.36,0.00018355,2]
[419156699,1774961446666,-513.36,0.00018355,2]
[419156700,1774961446676,-513.37492766,0.00018355,2]
[419156701,1774961446687,-500.0,0.00018355,2]
[419156702,1774961446697,-500.0,0.00018355,2]
[419156703,1774961446706,-500.0,0.00018355,2]
[419156704,1774961446717,-283.60730924,0.00018355,2]
[419156705,1774961446726,-500.0,0.00018355,2]
[419156706,1774961446736,-500.0,0.00018355,2]
[419156707,1774961446746,-500.0,0.00018355,2]
[419156708,1774961446756,-500.0,0.00018355,2]
[419156709,1774961446766,-500.0,0.00018355,2]
[419156710,1774961446781,-500.0,0.00018355,2]
[419156711,1774961446791,-500.0,0.00018355,2]
[419156712,1774961446802,-500.0,0.00018355,2]
[419156713,1774961446812,-500.0,0.00018355,2]
[419156714,1774961446822,-500.0,0.00018355,2]
[419156716,1774961446832,-500.0,0.00018355,2]
[419156717,1774961446842,-500.0,0.00018355,2]
[419156718,1774961446852,-500.0,0.00018355,2]
[419156720,1774961446862,-500.0,0.00018355,2]
[419156722,1774961446873,-500.0,0.00018355,2]
[419156724,1774961446883,-500.0,0.00018355,2]
[419156726,1774961446893,-500.0,0.00018355,2]
[419156728,1774961446903,-500.0,0.00018355,2]
[419156730,1774961446914,-500.0,0.00018355,2]
[419156734,1774961447189,-500.0,0.00018355,2]
[419156735,1774961447199,-500.0,0.00018355,2]
[419156736,1774961447209,-500.0,0.00018355,2]
[419156737,1774961447218,-500.0,0.00018355,2]
[419156738,1774961447228,-500.0,0.00018355,2]
[419156739,1774961447237,-500.0,0.00018355,2]
[419156740,1774961447246,-500.0,0.00018355,2]
[419156741,1774961447255,-500.0,0.00018355,2]
[419156742,1774961447264,-500.0,0.00018355,2]
[419156743,1774961447274,-500.0,0.00018355,2]
[419156744,1774961447284,-500.0,0.00018355,2]
[419156745,1774961447294,-500.0,0.00018355,2]
[419156746,1774961447303,-500.0,0.00018355,2]
[419156747,1774961447312,-500.0,0.00018355,2]
[419156748,1774961447321,-500.0,0.00018355,2]
[419156749,1774961447331,-500.0,0.00018355,2]
[419156750,1774961447341,-500.0,0.00018355,2]
[419156751,1774961447350,-500.0,0.00018355,2]
[419156752,1774961447359,-500.0,0.00018355,2]
[419156753,1774961447369,-500.0,0.00018355,2]
[419156754,1774961447380,-500.0,0.00018355,2]
[419156755,1774961447390,-500.0,0.00018355,2]
[419156756,1774961447400,-500.0,0.00018355,2]
[419156757,1774961447410,-500.0,0.00018355,2]
[419156758,1774961447419,-500.0,0.00018355,2]
[419156759,1774961447429,-500.0,0.00018355,2]
[419156760,1774961447438,-500.0,0.00018355,2]
[419156761,1774961447449,-500.0,0.00018355,2]
[419156762,1774961447458,-478.24015472,0.00018355,2]
[419156763,1774961447468,-300.0,0.00018355,2]
[419156764,1774961447478,-300.0,0.00018355,2]
[419156765,1774961447488,-300.0,0.00018355,2]
[419156766,1774961447497,-300.0,0.00018355,2]
[419156767,1774961447507,-300.0,0.00018355,2]
[419156768,1774961447521,-2167.1,0.00018356,2]
[419156769,1774961447531,-89135.85,0.00018356,2]
[419156770,1774961447541,-1289.53447238,0.00018356,2]
[419156771,1774961447552,-164.04,0.00018375,14]
[419156772,1774961447562,-164.56,0.00018382,22]
[419156773,1774961447571,-445.83,0.00018415,2]
[419156774,1774961447580,-186.5603989,0.00018422,2]
[419156775,1774961447589,-1516.139887,0.00018448,2]
[419156776,1774961447598,-1115.0,0.00018469,2]
[419156777,1774961447607,-725.0,0.00018516,6]